Cogmind - Beta 16 @@@ ROGUE MODE // 2025.12.16 @ 07:00:19 Player: shapeshifter Result: Destroyed by Y-45 Defender with Beam Rifle Performance ------------- Evolutions (2) 1000 Regions Visited (5) 1000 Robots Destroyed (12) 60 Value Destroyed (310) 310 Prototype IDs (1) 20 Alien Tech Used (0) 0 Bonus (33) 33 TOTAL SCORE: 2423 Bonus ------- Follower Combat Kills 33 Cogmind --------- Core Integrity 0/550 Matter 131/300 Energy 1/100 System Corruption 0% Temperature Cool (22) Movement Flying (26) Location -8/Storage Parts ------- > --- POWER (2) -------- (None) > --- PROPULSION (5) --- Improved VTOL Module Improved VTOL Module Improved VTOL Module Improved VTOL Module > --- UTILITY (2) ------ Machine Analyzer Improved Targeting Computer > --- WEAPON (2) ------- (None) > --- INVENTORY (5) ---- Improved VTOL Module Improved VTOL Module Improved Terrain Scanner Improved Terrain Scan Processor Plasma Cutter Peak State ------------ > --- POWER ------------ (None) > --- PROPULSION ------- Improved VTOL Module Improved VTOL Module Improved VTOL Module Improved VTOL Module > --- UTILITY ---------- Machine Analyzer Improved Targeting Computer > --- WEAPON ----------- (None) > --- INVENTORY -------- Improved VTOL Module Machine Analyzer Improved Terrain Scanner Improved Terrain Scan Processor Plasma Cutter [Rating: 22] Favorites ----------- Power Light Ion Engine Engine Light Ion Engine Propulsion Light Treads Treads Light Treads Hover Unit Improved Hover Unit Flight Unit Improved VTOL Module Utility Improved Targeting Computer Device Improved Terrain Scanner Processor Improved Targeting Computer Weapon Mace Energy Gun EM Pulse Gun Ballistic Gun Assault Rifle Launcher Rocket Launcher Special Weapon Plasma Cutter Impact Weapon Mace Build | -11 -10 -9 -9 -8 -8 ------- Run | Yrd Mat Mat Min Mat Sto Slots Evolved 4 | . . 2 . 2 . Power 1 | . . . . 1 . Propulsion 3 | . . 2 . 1 . Utility . | . . . . . . Weapon . | . . . . . . Parts Attached 28 | 4 5 5 . 2 12 Power 1 | . 1 . . . . Engine 1 | . 1 . . . . Core . | . . . . . . Reactor . | . . . . . . Propulsion 16 | 2 2 1 . 1 10 Treads 6 | 2 . . . . 4 Leg . | . . . . . . Wheel . | . . . . . . Hover 4 | . 2 1 . 1 . Flight 6 | . . . . . 6 Utility 5 | . 2 2 . 1 . Device 2 | . 2 . . . . Storage . | . . . . . . Processor 3 | . . 2 . 1 . Hackware . | . . . . . . Protection . | . . . . . . Artifact . | . . . . . . Weapon 6 | 2 . 2 . . 2 Energy Gun 2 | 1 . 1 . . . Energy Cannon . | . . . . . . Ballistic Gun 1 | 1 . . . . . Ballistic Cannon . | . . . . . . Launcher 1 | . . . . . 1 Special Weapon 1 | . . . . . 1 Impact Weapon 1 | . . 1 . . . Slashing Weapon . | . . . . . . Piercing Weapon . | . . . . . . Special Melee Weapon . | . . . . . . Unidentified Prototypes 1 | . . . . . 1 Parts Lost 4 | . . . . 2 2 Power . | . . . . . . Propulsion 2 | . . . . 2 . Utility . | . . . . . . Weapon 2 | . . . . . 2 Highest Loss Streak 2 | . . . . 2 1 To Critical Strikes . | . . . . . . Average Backups 4 | 3 4 4 5 5 4 Power . | 1 1 1 1 . . Propulsion . | . . 2 1 . . Utility 1 | . 1 1 1 1 3 Weapon . | . 1 . 1 1 . Tool/Special . | . . . . . . Unused Backups 5 | . . . . 2 3 Power 1 | . . . . 1 . Propulsion 1 | . . . . . 1 Utility 2 | . . . . . 2 Weapon . | . . . . . . Tool/Special 1 | . . . . 1 . Average Slot Usage (%) 38 | . 36 19 44 35 55 Treads 8 | . 15 . . . 22 Hover 4 | . 6 . 11 8 . Flight 1 | . . . . . 7 Device 1 | . 6 . . . . Processor 14 | . . 13 22 18 18 Energy Gun 1 | . . 5 . . . Ballistic Gun 1 | . 7 . . . . Impact Weapon 4 | . . 1 11 9 3 Peak Build Rating 22 | 4 6 9 9 12 22 Average Rating 8 | 2 3 4 9 9 13 On Entrance 4 | . 3 . 9 9 8 Avg Prop Armor Cover (%) 26 | 32 29 19 19 25 42 Naked Turns 50 | . 21 29 . . . Heaviest Build 4 | 4 3 2 2 2 4 Greatest Support 83 | 3 14 3 3 3 83 Greatest Overweight (x) 1 | 1 . . . . 1 Average Overweight (x) . | . . . . . . Largest Inventory Capacity 5 | 5 5 5 5 5 5 Average Capacity 5 | 5 5 5 5 5 5 Most Carried 5 | 5 5 5 5 5 5 Average Carried 4 | 3 4 4 5 4 4 Final Capacity 5 | 5 5 5 5 5 5 Final Carried 5 | 5 5 5 5 5 5 Class Distribution -------------------- 100% | Mutant Dominant Class ---------------- Mutant | -10/Materials Mutant | -9/Materials Mutant | -9/Mines Mutant | -8/Materials Mutant | -8/Storage Resources | -11 -10 -9 -9 -8 -8 ----------- Run | Yrd Mat Mat Min Mat Sto Matter Collected 369 | 252 . 82 . 35 . Remotely . | . . . . . . Salvage Created 300 | 87 . . . 47 166 Parts 23 | 4 . . . 4 15 Haulers Intercepted 1 | . . . . 1 . Recyclers Shooed . | . . . . . . Parts Field Recycled . | . . . . . . Retrieved Matter . | . . . . . . Parts Self-Destructed . | . . . . . . Prevented . | . . . . . . Parts Restored . | . . . . . . Kills | -11 -10 -9 -9 -8 -8 ------- Run | Yrd Mat Mat Min Mat Sto Combat Hostiles Destroyed 9 | . . . . . 9 AOE 9 | . . . . . 9 Classes Destroyed 7 | 2 . . . 1 4 Tunneler 1 | 1 . . . . . Hauler 1 | . . . . 1 . Recycler 1 | 1 . . . . . Swarmer 3 | . . . . . 3 Grunt 4 | . . . . . 4 Brawler 1 | . . . . . 1 Protector 1 | . . . . . 1 Best Kill Streak 9 | 2 . . . 1 9 Combat Bots Only 9 | . . . . . 9 Max Kills in Single Turn 3 | 1 . . . 1 3 Gunslinging . | . . . . . . Exploded 3 | . . . . . 3 Melee . | . . . . . . Uniques/NPCs Destroyed . | . . . . . . Combat | -11 -10 -9 -9 -8 -8 -------- Run | Yrd Mat Mat Min Mat Sto Hostile Shots Fired 240 | . 39 40 . 78 83 Missed 93 | . 15 20 . 28 30 Hits 147 | . 24 20 . 50 53 Projectile 147 | . 24 20 . 50 53 Critical Strikes 5 | . . . . 3 2 Damage Taken 1668 | . 204 196 . 609 659 Core 862 | . 172 129 . 436 125 Absorbed by Shields . | . . . . . . Core Remaining (%) 66 | 100 31 . 67 . . Volleys Fired 13 | 4 3 . . . 6 Largest 2 | 2 1 . . . 1 Hottest 70 | 70 20 . . . 33 Shots Fired 17 | 8 3 . . . 6 Gun 11 | 8 3 . . . . Cannon . | . . . . . . Launcher 6 | . . . . . 6 Special . | . . . . . . Kinetic 7 | 4 3 . . . . Thermal 4 | 4 . . . . . Explosive 6 | . . . . . 6 Electromagnetic . | . . . . . . Robot Hit Streak 6 | 6 1 . . . 3 Robot Miss Streak 2 | 1 1 . . . 2 Penetration Max . | . . . . . . Secondary Targets . | . . . . . . Shots Hit Robots 13 | 7 1 . . 2 3 Core Hits 23 | 3 . . . . 20 Critical Kills . | . . . . . . Critical Parts Destroyed 1 | . . . . 1 . Critical Strikes 1 | . . . . 1 . Smash 1 | . . . . 1 . Melee Attacks 6 | . . . . 6 . Impact 6 | . . . . 6 . Slashing . | . . . . . . Piercing . | . . . . . . Sneak Attacks 1 | . . . . 1 . Combat Hostiles . | . . . . . . Follow-up Attacks . | . . . . . . Damage Inflicted 993 | 95 19 . . 99 780 Guns 107 | 95 12 . . . . Cannons . | . . . . . . Explosions 774 | . . . . . 774 Melee 99 | . . . . 99 . Ramming 13 | . 7 . . . 6 Kinetic 56 | 44 12 . . . . Thermal 51 | 51 . . . . . Explosive 774 | . . . . . 774 Electromagnetic . | . . . . . . Impact 99 | . . . . 99 . Slashing . | . . . . . . Piercing . | . . . . . . Highest Corruption . | . . . . . . Average Corruption . | . . . . . . Corruption Purged . | . . . . . . Corruption Blocked . | . . . . . . Overload Shots . | . . . . . . Overflow Damage 74 | . . . . 52 22 Projectiles . | . . . . . . Explosions 22 | . . . . . 22 Melee 52 | . . . . 52 . Knockbacks . | . . . . . . Impact . | . . . . . . Kinetic . | . . . . . . Secondary . | . . . . . . Self-Inflicted Damage 29 | . 3 . . . 26 Shots 1 | . . . . . 1 Rammed 4 | . 2 . . . 2 Targets Rammed 4 | . 2 . . . 2 Kicked . | . . . . . . Crushed . | . . . . . . Highest Temperature 3 | . . . . . 3 Average Temperature 3 | . . . . . 3 Received Heat Transfer 516 | . 30 45 . 243 198 Siege Activations . | . . . . . . Martial Activations . | . . . . . . Shielding Activations . | . . . . . . Robots Disrupted . | . . . . . . Combat Hostiles . | . . . . . . Robots Corrupted . | . . . . . . Combat Hostiles . | . . . . . . Parts Fried . | . . . . . . Impact Corruptions 1 | . . . . 1 . Robots Melted . | . . . . . . Combat Hostiles . | . . . . . . Parts Melted . | . . . . . . Heat Transferred 148 | 148 . . . . . Parts Sabotaged . | . . . . . . Parts Stolen . | . . . . . . Parts Stripped . | . . . . . . Power Chain Reactions . | . . . . . . Alert | -11 -10 -9 -9 -8 -8 ------- Run | Yrd Mat Mat Min Mat Sto Maximum Alert Level 1 | . . . . . 1 Low Security (%) 89 | 100 100 100 100 100 58 Level 1 10 | . . . . . 41 Level 2 . | . . . . . . Level 3 . | . . . . . . Level 4 . | . . . . . . Level 5 . | . . . . . . High Security . | . . . . . . Max Security . | . . . . . . Peak Influence 240 | 10 30 35 13 35 240 Initial 14 | . . 8 13 . 14 Average 30 | 2 5 9 5 7 104 Influence Increases 437 | 10 30 45 . 67 285 Destroy 0b10 Robot/C 180 | . . . . . 180 Destroy 0b10 Robot/NC 20 | 10 . . . 5 5 Destroy Leader 42 | . . . . 2 40 Allied During Kill 5 | . . . . . 5 Disable Machine 15 | . . . . . 15 Destroy Structure 40 | . . . . . 40 Lose Combat Pursuer 135 | . 30 45 . 60 . Influence Decreases 237 | 10 10 30 35 32 120 Entered New Map 55 | . . 12 22 . 21 Time Decay 131 | 10 10 18 13 20 60 Lost Part 32 | . . . . 12 20 Lost Ally 19 | . . . . . 19 Squads Dispatched 4 | . 1 1 . . 2 Investigation . | . . . . . . Extermination . | . . . . . . Reinforcement 2 | . 1 1 . . . Assault 2 | . . . . . 2 Garrison . | . . . . . . Intercept . | . . . . . . Searches Triggered . | . . . . . . Construction Impeded . | . . . . . . Haulers Reinforced . | . . . . . . Active Scanning Responses . | . . . . . . Cargo Convoy Interrupts . | . . . . . . Stealth | -11 -10 -9 -9 -8 -8 --------- Run | Yrd Mat Mat Min Mat Sto Distress Signals 5 | . . 2 . . 3 Communications Jammed . | . . . . . . Distress Signals . | . . . . . . Times Spotted 52 | . 8 20 . 10 14 Peak Tracking Total 17 | . 5 17 . 9 10 Tactical Retreats 4 | . 1 1 . 2 . Traps | -11 -10 -9 -9 -8 -8 ------- Run | Yrd Mat Mat Min Mat Sto Traps Triggered 3 | . 3 . . . . Indirectly . | . . . . . . Trap Hack Attempts . | . . . . . . Triggered . | . . . . . . Disarmed . | . . . . . . Reprogrammed . | . . . . . . Reused . | . . . . . . Traps Extracted . | . . . . . . Installed . | . . . . . . Triggered . | . . . . . . Machines | -11 -10 -9 -9 -8 -8 ---------- Run | Yrd Mat Mat Min Mat Sto Machines Disabled 1 | . . . . . 1 Max in Single Turn 1 | . . . . . 1 Machines Repaired . | . . . . . . Machines Dismantled 1 | . . . . . 1 Machines Sabotaged . | . . . . . . Overloaded Fab Kills . | . . . . . . Hacking | -11 -10 -9 -9 -8 -8 --------- Run | Yrd Mat Mat Min Mat Sto Machines Accessed . | . . . . . . Terminals . | . . . . . . Fabricators . | . . . . . . Repair Stations . | . . . . . . Recycling Units . | . . . . . . Scanalyzers . | . . . . . . Garrison Access . | . . . . . . Total Hacks . | . . . . . . Successful . | . . . . . . Failed . | . . . . . . Catastrophic . | . . . . . . Database Lockouts . | . . . . . . Manual . | . . . . . . Terminals . | . . . . . . Fabricators . | . . . . . . Repair Stations . | . . . . . . Recycling Units . | . . . . . . Scanalyzers . | . . . . . . Garrison Access . | . . . . . . Terminal Hacks . | . . . . . . Fabricator Hacks . | . . . . . . Repair Station Hacks . | . . . . . . Recycling Unit Hacks . | . . . . . . Scanalyzer . | . . . . . . Garrison Access Hacks . | . . . . . . Unauthorized Hacks . | . . . . . . Terminals . | . . . . . . Fabricators . | . . . . . . Repair Stations . | . . . . . . Recycling Units . | . . . . . . Scanalyzers . | . . . . . . Garrison Access . | . . . . . . Data Cores Recovered . | . . . . . . Used . | . . . . . . Hacking Detections . | . . . . . . Full Trace Events . | . . . . . . Feedback Events . | . . . . . . Feedback Blocked . | . . . . . . Robot Schematics Acquired . | . . . . . . Robots Built . | . . . . . . Authchips . | . . . . . . Time . | . . . . . . Total Robot Build Rating . | . . . . . . Part Schematics Acquired . | . . . . . . Parts Built . | . . . . . . Authchips . | . . . . . . Time . | . . . . . . Total Part Build Rating . | . . . . . . Part Studies Acquired . | . . . . . . Parts Repaired . | . . . . . . Time . | . . . . . . Parts Recycled . | . . . . . . Recycled Matter . | . . . . . . Retrieved Matter . | . . . . . . Retrieved Components . | . . . . . . Parts Scanalyzed . | . . . . . . Part Schematics Acquired . | . . . . . . Parts Damaged . | . . . . . . Bothacking | -11 -10 -9 -9 -8 -8 ------------ Run | Yrd Mat Mat Min Mat Sto Used RIF Installer . | . . . . . . Robots Hacked . | . . . . . . Non-combat . | . . . . . . Combat . | . . . . . . Robot Hacks Applied . | . . . . . . Relay Couplers Released . | . . . . . . Fabnet Peak Effective % . | . . . . . . Robots Rewired . | . . . . . . Allies Hacked . | . . . . . . Hacks Repelled . | . . . . . . Allies | -11 -10 -9 -9 -8 -8 -------- Run | Yrd Mat Mat Min Mat Sto Total Allies 2 | . . . . . 2 Largest Group 2 | . . . . . 2 Highest-Rated Group 62 | . . . . . 62 Highest-Rated Ally 31 | . . . . . 31 Total Orders . | . . . . . . Ally Attacks 10 | . . . . . 10 Total Damage 187 | . . . . . 187 Kills 1 | . . . . . 1 Allies Corrupted . | . . . . . . Allies Melted . | . . . . . . Intel | -11 -10 -9 -9 -8 -8 ------- Run | Yrd Mat Mat Min Mat Sto Active Infowar (turns) 237 | . 47 . . 93 97 Terrain 39 | . 39 . . . . Seismic 8 | . 8 . . . . Machine Analysis 190 | . . . . 93 97 Robot Analysis Total . | . . . . . . Derelict Logs Recovered 1 | . . . 1 . . Drone Launches . | . . . . . . Drone Recoveries . | . . . . . . Exploration | -11 -10 -9 -9 -8 -8 ------------- Run | Yrd Mat Mat Min Mat Sto Turns Passed 535 | 57 76 93 60 119 130 Spaces Moved 741 | 45 116 168 119 190 103 Core 700 | 45 114 168 119 190 64 Treads 8 | . . . . . 8 Legs . | . . . . . . Wheels . | . . . . . . Hover 2 | . 2 . . . . Flight 31 | . . . . . 31 Fastest Speed 26 | 50 50 50 50 50 26 Average Speed 51 | 55 50 50 50 50 57 Slowest Speed 160 | 100 60 50 50 50 160 Overloaded Moves . | . . . . . . Propulsion Burnouts . | . . . . . . Robots Hopped . | . . . . . . Potential Cave-ins . | . . . . . . Cave-ins Triggered . | . . . . . . Exploration Rate (%) 24 | 3 28 25 39 29 21 Regions Visited 5 Branch Regions 2 Pre-discovered Areas 1 | . . . 1 . . Known Exits Taken 1 | . . . 1 . . Unknown Exits Taken 4 | 1 1 1 . 1 . Scrap Searched . | . . . . . . Spaces Dug . | . . . . . . Terrain Destroyed 42 | . . . . . 42 Melee . | . . . . . . Projectile . | . . . . . . AOE 42 | . . . . . 42 Terrain Rammed . | . . . . . . Walls Destroyed . | . . . . . . Machines Disabled . | . . . . . . Actions | -11 -10 -9 -9 -8 -8 --------- Run | Yrd Mat Mat Min Mat Sto Total 844 | 68 129 175 118 203 151 Wait 15 | 6 . . . . 9 Move 736 | 44 115 167 118 189 103 Hop . | . . . . . . Pick Up 20 | 9 3 2 . 3 3 Fast Attach 15 | . 2 3 . 1 9 Attach 13 | 4 3 2 . 1 3 Detach 1 | . . . . . 1 Swap . | . . . . . . Drop 13 | 1 1 1 . 3 7 Fire 13 | 4 3 . . . 6 Melee 6 | . . . . 6 . Ram 4 | . 2 . . . 2 Kick . | . . . . . . Crush . | . . . . . . Escape Stasis . | . . . . . . Rewire . | . . . . . . Trap . | . . . . . . Miscellaneous 8 | . . . . . 8 Route ------- -11/Scrapyard -10/Materials -9/Materials -9/Mines (discovered 2 exits: *Mat x2) -8/Materials (discovered 2 exits: [*Fac] / [*Sto]) -8/Storage History --------- Turn | Location | Event 5 | -11/Scrapyard | Discovered new exit (range 14) 58 | -11/Scrapyard | Entered Materials 123 | -10/Materials | Core integrity fell below 50% 133 | -10/Materials | Discovered new exit (range 3) 134 | -10/Materials | Entered another Materials area 134 | -9/Materials | Evolved 2 slots: Propulsion x2 207 | -9/Materials | Discovered new exit (range 11) 227 | -9/Materials | Entered Mines 259 | -9/Mines | Identified exit to Materials 279 | -9/Mines | Discovered exit to Materials (range 16) 283 | -9/Mines | Learned location of Storage (-8) 287 | -9/Mines | Entered Materials 287 | -8/Materials | Evolved 2 slots: Power x1, Propulsion x1 332 | -8/Materials | Discovered new exit (range 8) 334 | -8/Materials | Build established: Mutant 375 | -8/Materials | Core integrity fell below 50% 403 | -8/Materials | Discovered new exit (range 6) 406 | -8/Materials | Entered Storage 410 | -8/Storage | Met a pair of Derelict thieves 467 | -8/Storage | Core integrity fell below 20% 505 | -8/Storage | Destroyed 9 combat bots 536 | -8/Storage | Destroyed by Y-45 Defender with Beam Rifle Last Messages --------------- 00502_ R-06 Scavenger collects Adv. Heat Sink. 00503_ U-05 Engineer lays Concrete. 00504_ Critical hit (Burn: +37). 00504_ Dropped Lgt. Treads. 00505_ R-06 Scavenger collects Lgt. Treads. 00505_ U-05 Engineer lays Concrete. 00506_ Dropped Lgt. Treads. 00506_ U-05 Engineer lays Concrete. 00506_ Dropped Lgt. Treads. 00507_ Dropped Imp. Treads. 00507_ Rocket Launcher destroyed. 00513_ Acquired Prototype Flight Unit. 00514_ Identified Imp. VTOL Module. 00517_ Acquired Imp. VTOL Module. 00521_ Dropped Flight Unit. 00530_ Acquired Imp. VTOL Module. 00532_ Dropped Machine Analyzer. 00533_ Acquired Imp. VTOL Module. 00535_ >> Machine Analyzer network decryption results: 00535_ Recycling Unit x1 Map ----- +----------------------------------------------------+ | ??????????????????????????????????????????????? | | ??????????????????????????????????????????????? | | ??????????????????????????????????????????????? | | ??????????????????????????????????????????????? | | ??????????????????????????????????????????????? | | ??????????????????????????????????????????????? | | ??????????????????????????????????????????????? | | ??????????????????????????????????????????????? | | ??????????????????????????????????????????????? | | ??????????????????????????????????????????????? | | ??????????????????????????????????????????????? | | ??????????????????????"""?????????????????????? | | ??????????????????????"""?????????????????????? | | ??????????????????????"""?????????????????????? | | ??????????????????????????????????????????????? | | ??????????????????????"""?????????????????????? | | ??????????????????????"""?????????????????????? | | ??????????????????????"""?????????????????????? | | ?????????????????????? ???????????????????????? | | ????????????????????##+##?????????????????????? | | ??????????######??#?# #########???????##+#??? | | ??????????# ?# # #!!==#???????/ ??? | | ??????????# # # " ==#???????# ??? | | ??????????# # # ==#???????# #??? | | ?????????""?""" r + " #????"" # #??? | | ?????????"Y?""" # @Y##T# !#???""" # #??? | | ?????????""?"""?????# #### == #?? # #??? | | ????????????????????# #??######?# # #??? | | ????????????????????# ####???### ## #??? | | ???????????????????## ## #### ## %#??? | | ???????????????????# # #"%#### | | ???????????????????# === %%=/ %!=%= | | ???????????????????# T = %= %[%= /%]] | | ???????????????????# ! ==%= !!* | | ???????????????????# ! ####### | | ???????????????????### # # ##?????? | | ??????????????????] T # ## ####??????? | | ?????????????????# # ## !????????? | | ?????????????????# # ## !!!??????? | | ?????????????????# #/= ###T#####?????? | | ?????????????????#"""" #== #?###?????????? | | ?????????????????#"""" #== ?????????????? | | ??????????????????"""" # ##????????????? | | ??????????????????"""" # #?????????????? | | ????????????????????? # #?????????????? | | ?????????????????????#####?#####??????????????? | | | | | | | | | +----------------------------------------------------+ Best States ------------- Heat Dissipation 31 Energy Generation 5 Energy Capacity 100 Matter Stores 300 Matter Capacity 300 Sight Range 16 Terrain Scan Range 16 Terrain Scan Density 10 Evasion (%) 64 Targeting Accuracy 12 Recoil Reduction 4 Item Schematics ----------------- None Robot Schematics ------------------ None Fabricated ------------ Nothing Repaired ---------- Nothing Studied --------- None Alien Tech Used ----------------- None Achievements -------------- None Challenges ------------ None Game ------ Seed ProjectionIntegratedTrap Manual? 0 Play Time 00:09:47 Cumulative 625.3 hours Start 2025.12.16 @ 06:52:32 End 2025.12.16 @ 07:00:19 Sessions 1 Manual Loads 0 Difficulty Rogue Special Mode None Game No. 790 Rogue 790 Adventurer 0 Explorer 0 Win Type - Total 23 Types 10/1/3/3/2/0/2/2/0/0 Lore% 96 Gallery% 92 Achievement% 80 Wizard Run 0 Options --------- Layout 0 ASCII 0 Keyboard 0 Movement Mouse Keybinds 0 Fullscreen 1 Font 24/Terminus Map View 76x50 Zoom Use 0% Tactical HUD 1 Map Filters NONE Filters NONE Steam 1 RUN: d96b40e8-2c2a-4769-ab66-09a39422dbd8